[Event "*** Titled Tuesday Blitz"]
[Site "Chess.com"]
[Date "2018.06.05"]
[Round "9"]
[White "Anton_Demchenko"]
[Black "Patzel09"]
[Result "1-0"]
[WhiteElo "2765"]
[BlackElo "2601"]
[TimeControl "180+2"]
[EndTime "15:10:52 PDT"]
[Termination "Anton_Demchenko won by resignation"]

1. e4 {[%clk 0:03:01.9]} 1... g6 {[%clk 0:02:52.9]} 2. d4 {[%clk 0:03:02.3]}
2... c6 {[%clk 0:02:54.8]} 3. Nc3 {[%clk 0:03:01.5]} 3... d5 {[%clk 0:02:54.6]}
4. Nf3 {[%clk 0:03:02.7]} 4... dxe4 {[%clk 0:02:55.6]} 5. Nxe4 {[%clk
0:03:03.4]} 5... Nf6 {[%clk 0:02:57.5]} 6. Nxf6+ {[%clk 0:03:04]} 6... exf6
{[%clk 0:02:59.4]} 7. h3 {[%clk 0:03:03.1]} 7... Bg7 {[%clk 0:03:00.8]} 8. Bd3
{[%clk 0:03:03.6]} 8... O-O {[%clk 0:03:02.7]} 9. O-O {[%clk 0:03:04.3]} 9... a5
{[%clk 0:03:04.6]} 10. c3 {[%clk 0:03:05.4]} 10... a4 {[%clk 0:03:05.7]} 11. Bf4
{[%clk 0:03:02.8]} 11... b5 {[%clk 0:03:06.3]} 12. Qd2 {[%clk 0:03:03.4]} 12...
Na6 {[%clk 0:03:07.5]} 13. Be4 {[%clk 0:02:55]} 13... Bd7 {[%clk 0:02:59.8]} 14.
Rad1 {[%clk 0:02:53]} 14... Nc7 {[%clk 0:02:58.3]} 15. Bh6 {[%clk 0:02:50.1]}
15... Nd5 {[%clk 0:02:41.5]} 16. Bxg7 {[%clk 0:02:47.8]} 16... Kxg7 {[%clk
0:02:43.4]} 17. Bxd5 {[%clk 0:02:45.6]} 17... cxd5 {[%clk 0:02:45.3]} 18. Ne1
{[%clk 0:02:44.1]} 18... Re8 {[%clk 0:02:37.1]} 19. Nd3 {[%clk 0:02:44.6]} 19...
Bf5 {[%clk 0:02:23]} 20. Nc5 {[%clk 0:02:44.5]} 20... Ra7 {[%clk 0:02:21]} 21.
Rde1 {[%clk 0:02:28.8]} 21... Rae7 {[%clk 0:02:21.4]} 22. Re3 {[%clk 0:02:29.8]}
22... Rxe3 {[%clk 0:01:59.6]} 23. fxe3 {[%clk 0:02:31.7]} 23... Qe7 {[%clk
0:01:51.5]} 24. Re1 {[%clk 0:02:31.8]} 24... Bd7 {[%clk 0:01:46]} 25. Qf2 {[%clk
0:02:29]} 25... f5 {[%clk 0:01:46.5]} 26. Qf4 {[%clk 0:02:27.5]} 26... Bc8
{[%clk 0:01:45.7]} 27. Kf1 {[%clk 0:02:13.4]} 27... g5 {[%clk 0:01:38.7]} 28.
Qf2 {[%clk 0:02:14.3]} 28... Qf6 {[%clk 0:01:31.7]} 29. b3 {[%clk 0:02:07.7]}
29... Qd6 {[%clk 0:01:19.6]} 30. Kg1 {[%clk 0:02:01.8]} 30... axb3 {[%clk
0:01:12.5]} 31. axb3 {[%clk 0:02:02.6]} 31... f4 {[%clk 0:01:14]} 32. h4 {[%clk
0:01:43.6]} 32... h6 {[%clk 0:01:00]} 33. Nd3 {[%clk 0:01:15.9]} 33... Bf5
{[%clk 0:00:38.6]} 34. exf4 {[%clk 0:01:16.9]} 34... Rxe1+ {[%clk 0:00:36.9]}
35. Nxe1 {[%clk 0:01:18.8]} 35... gxf4 {[%clk 0:00:34.4]} 36. Nf3 {[%clk
0:01:00.3]} 36... f6 {[%clk 0:00:35.7]} 37. b4 {[%clk 0:00:43.6]} 37... Bg4
{[%clk 0:00:29.9]} 38. Nd2 {[%clk 0:00:37.3]} 38... h5 {[%clk 0:00:29.8]} 39.
Nb3 {[%clk 0:00:33.8]} 39... Qb8 {[%clk 0:00:25.5]} 40. Nc5 {[%clk 0:00:33.2]}
40... Qe8 {[%clk 0:00:24.5]} 41. Nd3 {[%clk 0:00:31.5]} 41... Qe3 {[%clk
0:00:17]} 42. Qxe3 {[%clk 0:00:26]} 42... fxe3 {[%clk 0:00:17.8]} 43. Nf4 {[%clk
0:00:27.6]} 43... Kf7 {[%clk 0:00:13.5]} 44. Nxd5 {[%clk 0:00:27]} 44... e2
{[%clk 0:00:14.9]} 45. Kf2 {[%clk 0:00:27.9]} 45... Ke6 {[%clk 0:00:16.8]} 46.
Ne3 {[%clk 0:00:26.4]} 46... f5 {[%clk 0:00:17.3]} 47. Nxg4 {[%clk 0:00:26]}
47... hxg4 {[%clk 0:00:18.9]} 48. Kxe2 {[%clk 0:00:20.1]} 48... f4 {[%clk
0:00:20.1]} 49. Kf2 {[%clk 0:00:18.2]} 49... Kf5 {[%clk 0:00:20.9]} 50. h5
{[%clk 0:00:13]} 50... Kg5 {[%clk 0:00:21.6]} 51. d5 {[%clk 0:00:14.2]} 51...
Kxh5 {[%clk 0:00:21.1]} 52. d6 {[%clk 0:00:15.3]} 1-0

[Event "*** Titled Tuesday Blitz"]
[Site "Chess.com"]
[Date "2018.06.05"]
[Round "9"]
[White "vovachesss"]
[Black "Arystanner23"]
[Result "1-0"]
[WhiteElo "2418"]
[BlackElo "2603"]
[TimeControl "180+2"]
[EndTime "15:10:54 PDT"]
[Termination "vovachesss won by checkmate"]

1. Nf3 {[%clk 0:02:53.3]} 1... Nf6 {[%clk 0:03:00.7]} 2. g3 {[%clk 0:02:54.3]}
2... g6 {[%clk 0:03:01.4]} 3. Bg2 {[%clk 0:02:55.7]} 3... Bg7 {[%clk 0:03:03.3]}
4. O-O {[%clk 0:02:57.6]} 4... O-O {[%clk 0:03:04.6]} 5. c4 {[%clk 0:02:59]}
5... c6 {[%clk 0:03:04.5]} 6. b3 {[%clk 0:02:57.7]} 6... Ne4 {[%clk 0:03:03.1]}
7. d4 {[%clk 0:02:58.5]} 7... d5 {[%clk 0:03:04.1]} 8. Bb2 {[%clk 0:02:59.3]}
8... a5 {[%clk 0:03:05.7]} 9. a3 {[%clk 0:02:59.1]} 9... a4 {[%clk 0:03:06.2]}
10. cxd5 {[%clk 0:02:53.7]} 10... cxd5 {[%clk 0:03:06.5]} 11. Nc3 {[%clk
0:02:50.2]} 11... Nxc3 {[%clk 0:02:57.5]} 12. Bxc3 {[%clk 0:02:50.1]} 12... Nc6
{[%clk 0:02:59]} 13. b4 {[%clk 0:02:48.9]} 13... Bd7 {[%clk 0:02:52.3]} 14. Rc1
{[%clk 0:02:48.9]} 14... Na7 {[%clk 0:02:52.8]} 15. Ne5 {[%clk 0:02:48.7]} 15...
e6 {[%clk 0:02:44.7]} 16. Bb2 {[%clk 0:02:40.9]} 16... Bb5 {[%clk 0:02:44.1]}
17. Qd2 {[%clk 0:02:28.3]} 17... Ba6 {[%clk 0:02:38.8]} 18. Rc2 {[%clk
0:02:26.2]} 18... Rc8 {[%clk 0:02:30.1]} 19. Rfc1 {[%clk 0:02:26.4]} 19... Rxc2
{[%clk 0:02:31.1]} 20. Rxc2 {[%clk 0:02:27.6]} 20... Nb5 {[%clk 0:02:32.5]} 21.
e3 {[%clk 0:02:18.4]} 21... Nd6 {[%clk 0:02:32.8]} 22. Qc1 {[%clk 0:02:13.5]}
22... f6 {[%clk 0:02:17.8]} 23. Nf3 {[%clk 0:02:05.2]} 23... Bd3 {[%clk
0:02:15.7]} 24. Rc3 {[%clk 0:01:58.1]} 24... Be4 {[%clk 0:02:12.9]} 25. Nd2
{[%clk 0:01:57.7]} 25... Bxg2 {[%clk 0:02:07]} 26. Kxg2 {[%clk 0:01:58.5]} 26...
h5 {[%clk 0:01:57.7]} 27. h4 {[%clk 0:01:54.3]} 27... Nb5 {[%clk 0:01:35.8]} 28.
Rc5 {[%clk 0:01:52.9]} 28... Qd7 {[%clk 0:01:35]} 29. Qc2 {[%clk 0:01:52.8]}
29... Kh7 {[%clk 0:01:31.6]} 30. Qxa4 {[%clk 0:01:53.1]} 30... Rc8 {[%clk
0:01:16.4]} 31. Qxb5 {[%clk 0:01:43.1]} 31... Qxb5 {[%clk 0:01:17.2]} 32. Rxb5
{[%clk 0:01:44.9]} 32... Rc2 {[%clk 0:01:19]} 33. Nb3 {[%clk 0:01:43.4]} 33...
Rxb2 {[%clk 0:01:19.5]} 34. Nc5 {[%clk 0:01:44.4]} 34... e5 {[%clk 0:01:20.7]}
35. Rxb7 {[%clk 0:01:44.7]} 35... Kh8 {[%clk 0:01:17.7]} 36. a4 {[%clk
0:01:45.4]} 36... Bh6 {[%clk 0:01:18.8]} 37. Kf1 {[%clk 0:01:27.4]} 37... Rb1+
{[%clk 0:01:19.1]} 38. Ke2 {[%clk 0:01:28.4]} 38... Rb2+ {[%clk 0:01:20.2]} 39.
Ke1 {[%clk 0:01:25.1]} 39... Rb1+ {[%clk 0:00:55.2]} 40. Kd2 {[%clk 0:01:22.2]}
40... exd4 {[%clk 0:00:53.1]} 41. a5 {[%clk 0:01:22.6]} 41... dxe3+ {[%clk
0:00:53.2]} 42. fxe3 {[%clk 0:01:23.3]} 42... d4 {[%clk 0:00:54.5]} 43. Re7
{[%clk 0:01:13.9]} 43... dxe3+ {[%clk 0:00:53]} 44. Kc3 {[%clk 0:01:15]} 44...
Rc1+ {[%clk 0:00:32]} 45. Kb2 {[%clk 0:01:14.3]} 45... Re1 {[%clk 0:00:25.8]}
46. a6 {[%clk 0:01:15]} 46... Re2+ {[%clk 0:00:18.6]} 47. Kb3 {[%clk 0:01:14.2]}
47... Bf8 {[%clk 0:00:20.1]} 48. Rb7 {[%clk 0:00:57.8]} 48... Re1 {[%clk
0:00:20]} 49. a7 {[%clk 0:00:55.2]} 49... Ra1 {[%clk 0:00:20.6]} 50. Na4 {[%clk
0:00:56.5]} 50... e2 {[%clk 0:00:21.8]} 51. a8=Q {[%clk 0:00:56.8]} 51... Rb1+
{[%clk 0:00:22.3]} 52. Nb2 {[%clk 0:00:57.2]} 52... Kg8 {[%clk 0:00:19.5]} 53.
Qe8 {[%clk 0:00:57.7]} 53... e1=Q {[%clk 0:00:11]} 54. Qf7+ {[%clk 0:00:58]}
54... Kh8 {[%clk 0:00:12.8]} 55. Qh7# {[%clk 0:00:58.7]} 1-0

[Event "*** Titled Tuesday Blitz"]
[Site "Chess.com"]
[Date "2018.06.05"]
[Round "9"]
[White "BartoszSocko"]
[Black "VitaliyBernadskiy"]
[Result "0-1"]
[WhiteElo "2630"]
[BlackElo "2658"]
[TimeControl "180+2"]
[EndTime "15:11:02 PDT"]
[Termination "VitaliyBernadskiy won by resignation"]

1. e4 {[%clk 0:02:59.5]} 1... c5 {[%clk 0:03:00.3]} 2. Nf3 {[%clk 0:02:59.9]}
2... Nc6 {[%clk 0:03:01.2]} 3. Bb5 {[%clk 0:03:00.2]} 3... Nf6 {[%clk
0:03:00.6]} 4. e5 {[%clk 0:02:53.2]} 4... Nd5 {[%clk 0:03:00]} 5. O-O {[%clk
0:02:54.1]} 5... Nc7 {[%clk 0:02:46.7]} 6. Bd3 {[%clk 0:02:49.6]} 6... g6 {[%clk
0:02:44.1]} 7. Re1 {[%clk 0:02:49.8]} 7... Bg7 {[%clk 0:02:44.5]} 8. c3 {[%clk
0:02:50.9]} 8... O-O {[%clk 0:02:44.7]} 9. Bc2 {[%clk 0:02:51.6]} 9... d6 {[%clk
0:02:45.2]} 10. exd6 {[%clk 0:02:49.1]} 10... exd6 {[%clk 0:02:36.4]} 11. h3
{[%clk 0:02:46.8]} 11... d5 {[%clk 0:02:33]} 12. d4 {[%clk 0:02:42.1]} 12...
cxd4 {[%clk 0:02:34.2]} 13. Nxd4 {[%clk 0:02:42.2]} 13... Nxd4 {[%clk
0:02:31.4]} 14. cxd4 {[%clk 0:02:44.1]} 14... Ne6 {[%clk 0:02:20.9]} 15. Be3
{[%clk 0:02:40.5]} 15... Qb6 {[%clk 0:02:16.9]} 16. Nc3 {[%clk 0:02:41.7]} 16...
Qxb2 {[%clk 0:02:17.6]} 17. Nxd5 {[%clk 0:02:12.6]} 17... Nxd4 {[%clk
0:02:15.2]} 18. Rb1 {[%clk 0:01:41.5]} 18... Qxc2 {[%clk 0:01:37.9]} 19. Bxd4
{[%clk 0:01:41]} 19... Qxd1 {[%clk 0:01:31]} 20. Rbxd1 {[%clk 0:01:39.4]} 20...
Bxd4 {[%clk 0:00:51.3]} 21. Rxd4 {[%clk 0:01:41.3]} 21... Be6 {[%clk 0:00:40.4]}
22. Nc7 {[%clk 0:01:37]} 22... Rac8 {[%clk 0:00:38.1]} 23. Nxe6 {[%clk
0:01:34.4]} 23... fxe6 {[%clk 0:00:40]} 24. Rxe6 {[%clk 0:01:28.4]} 24... Rc1+
{[%clk 0:00:38.7]} 25. Kh2 {[%clk 0:01:29.2]} 25... Rxf2 {[%clk 0:00:25.8]} 26.
Re7 {[%clk 0:01:28.2]} 26... Rcc2 {[%clk 0:00:14.2]} 27. Rd8+ {[%clk 0:01:29]}
27... Rf8 {[%clk 0:00:14.8]} 28. Rdd7 {[%clk 0:01:30.9]} 28... Rff2 {[%clk
0:00:14.9]} 29. Rg7+ {[%clk 0:01:00.8]} 29... Kf8 {[%clk 0:00:14]} 30. Rxh7
{[%clk 0:01:02.2]} 30... Rxg2+ {[%clk 0:00:14.2]} 31. Kh1 {[%clk 0:01:03.9]}
31... Rh2+ {[%clk 0:00:09.8]} 32. Kg1 {[%clk 0:01:05.3]} 32... Rhg2+ {[%clk
0:00:10.1]} 33. Kf1 {[%clk 0:01:06.6]} 33... Rgf2+ {[%clk 0:00:07.8]} 34. Ke1
{[%clk 0:01:07.8]} 34... Kg8 {[%clk 0:00:04.6]} 35. Rhg7+ {[%clk 0:01:06.6]}
35... Kf8 {[%clk 0:00:05.5]} 36. Rh7 {[%clk 0:01:03]} 36... Kg8 {[%clk
0:00:06.4]} 37. Rhg7+ {[%clk 0:00:54.6]} 37... Kf8 {[%clk 0:00:06.6]} 38. Rxg6
{[%clk 0:00:56.2]} 38... Rh2 {[%clk 0:00:06]} 39. Rg1 {[%clk 0:00:34.6]} 39...
Rc1+ {[%clk 0:00:05.4]} 40. Rd1 {[%clk 0:00:35.3]} 40... Rxd1+ {[%clk
0:00:06.5]} 41. Kxd1 {[%clk 0:00:37.2]} 41... Rxa2 {[%clk 0:00:07]} 42. Rg4
{[%clk 0:00:33.2]} 42... b5 {[%clk 0:00:05.5]} 43. h4 {[%clk 0:00:30]} 43... a5
{[%clk 0:00:06.2]} 44. h5 {[%clk 0:00:31.5]} 44... b4 {[%clk 0:00:05.4]} 45. h6
{[%clk 0:00:31.4]} 45... Rh2 {[%clk 0:00:04.7]} 46. Rg5 {[%clk 0:00:28.5]} 46...
a4 {[%clk 0:00:05.4]} 47. Rg4 {[%clk 0:00:27.2]} 47... a3 {[%clk 0:00:06.5]} 48.
h7 {[%clk 0:00:19.8]} 48... Rxh7 {[%clk 0:00:05.8]} 49. Kc2 {[%clk 0:00:18.4]}
49... Rh2+ {[%clk 0:00:04.6]} 50. Kb3 {[%clk 0:00:18.1]} 50... Rb2+ {[%clk
0:00:04.7]} 51. Kc4 {[%clk 0:00:19.5]} 51... a2 {[%clk 0:00:06]} 52. Rg1 {[%clk
0:00:20.2]} 52... Rb1 {[%clk 0:00:06.8]} 0-1

[Event "*** Titled Tuesday Blitz"]
[Site "Chess.com"]
[Date "2018.06.05"]
[Round "9"]
[White "Shant_Sargsyan"]
[Black "Fins0905"]
[Result "1-0"]
[WhiteElo "2885"]
[BlackElo "2599"]
[TimeControl "180+2"]
[EndTime "15:11:08 PDT"]
[Termination "Shant_Sargsyan won by resignation"]

1. Nf3 {[%clk 0:03:01.2]} 1... d5 {[%clk 0:03:00.7]} 2. d4 {[%clk 0:03:01.9]}
2... Nf6 {[%clk 0:03:00.7]} 3. c4 {[%clk 0:03:03.8]} 3... c6 {[%clk 0:03:01.5]}
4. Nc3 {[%clk 0:03:04.7]} 4... dxc4 {[%clk 0:03:02.9]} 5. a4 {[%clk 0:03:05.9]}
5... Bf5 {[%clk 0:03:03.7]} 6. Ne5 {[%clk 0:03:07.3]} 6... e6 {[%clk 0:03:02.6]}
7. f3 {[%clk 0:03:05.7]} 7... Bb4 {[%clk 0:03:02.8]} 8. Nxc4 {[%clk 0:03:07.2]}
8... Bg6 {[%clk 0:03:02.6]} 9. Kf2 {[%clk 0:03:02.6]} 9... Nbd7 {[%clk
0:03:02.8]} 10. e4 {[%clk 0:03:03.3]} 10... Qc7 {[%clk 0:03:01.7]} 11. Be3
{[%clk 0:03:01.6]} 11... O-O {[%clk 0:02:58.8]} 12. Be2 {[%clk 0:02:55.6]} 12...
Bxc3 {[%clk 0:02:48.5]} 13. bxc3 {[%clk 0:02:55.8]} 13... Bxe4 {[%clk
0:02:49.8]} 14. fxe4 {[%clk 0:02:56]} 14... Nxe4+ {[%clk 0:02:50.9]} 15. Kg1
{[%clk 0:02:57.6]} 15... Nxc3 {[%clk 0:02:51.7]} 16. Qd2 {[%clk 0:02:57.6]}
16... Nd5 {[%clk 0:02:48.5]} 17. h4 {[%clk 0:02:55.8]} 17... Rad8 {[%clk
0:02:44.2]} 18. Rh3 {[%clk 0:02:56.5]} 18... c5 {[%clk 0:02:41.6]} 19. Rd1
{[%clk 0:02:50.9]} 19... cxd4 {[%clk 0:02:33.3]} 20. Bxd4 {[%clk 0:02:48.4]}
20... b6 {[%clk 0:02:19.4]} 21. Bf1 {[%clk 0:02:43.3]} 21... h6 {[%clk
0:01:54.2]} 22. Qf2 {[%clk 0:02:35.5]} 22... N7f6 {[%clk 0:01:32.8]} 23. Rg3
{[%clk 0:02:29.5]} 23... Kh8 {[%clk 0:01:11.8]} 24. Ne3 {[%clk 0:01:32.1]} 24...
e5 {[%clk 0:00:56]} 25. Bb2 {[%clk 0:00:27.8]} 25... Ne4 {[%clk 0:00:52.5]} 26.
Qf3 {[%clk 0:00:28.7]} 26... Nxg3 {[%clk 0:00:48.2]} 27. Qxg3 {[%clk 0:00:16.4]}
27... Qc5 {[%clk 0:00:36.3]} 28. Bc1 {[%clk 0:00:05.6]} 28... f5 {[%clk
0:00:33.7]} 29. Qf2 {[%clk 0:00:04.2]} 29... f4 {[%clk 0:00:18.3]} 30. Nxd5
{[%clk 0:00:04.2]} 30... Rxd5 {[%clk 0:00:19.8]} 31. Qxc5 {[%clk 0:00:05.1]}
31... Rxc5 {[%clk 0:00:20.4]} 32. Ba3 {[%clk 0:00:06.7]} 32... e4 {[%clk
0:00:19]} 33. Bxc5 {[%clk 0:00:06.9]} 33... bxc5 {[%clk 0:00:20.9]} 34. Rc1
{[%clk 0:00:08.3]} 34... Rf5 {[%clk 0:00:21.3]} 35. Rc4 {[%clk 0:00:09]} 35...
Re5 {[%clk 0:00:21.6]} 36. Kf2 {[%clk 0:00:10.1]} 36... g5 {[%clk 0:00:22.9]}
37. hxg5 {[%clk 0:00:10.7]} 37... hxg5 {[%clk 0:00:24.8]} 38. Be2 {[%clk
0:00:10.6]} 38... Kg7 {[%clk 0:00:25.7]} 39. a5 {[%clk 0:00:11.4]} 39... Kf6
{[%clk 0:00:26.4]} 40. a6 {[%clk 0:00:12.9]} 40... Ke6 {[%clk 0:00:26.3]} 41.
Rc1 {[%clk 0:00:13.5]} 41... Kf5 {[%clk 0:00:24.1]} 42. Rb1 {[%clk 0:00:09.9]}
42... g4 {[%clk 0:00:24.4]} 43. Rb7 {[%clk 0:00:08.5]} 43... f3 {[%clk
0:00:15.5]} 44. gxf3 {[%clk 0:00:09.6]} 44... exf3 {[%clk 0:00:16.4]} 45. Bf1
{[%clk 0:00:09]} 45... Re6 {[%clk 0:00:08.9]} 46. Rf7+ {[%clk 0:00:09.4]} 46...
Ke4 {[%clk 0:00:08.6]} 47. Rxa7 {[%clk 0:00:08.9]} 47... Rf6 {[%clk 0:00:08.5]}
48. Kg3 {[%clk 0:00:08.4]} 48... Kd4 {[%clk 0:00:03.9]} 49. Rd7+ {[%clk
0:00:09]} 49... Kc3 {[%clk 0:00:05.1]} 50. a7 {[%clk 0:00:10.2]} 50... Rf8
{[%clk 0:00:06.1]} 51. Rc7 {[%clk 0:00:10.9]} 51... Kb4 {[%clk 0:00:04]} 52.
Rb7+ {[%clk 0:00:11.7]} 52... Kc3 {[%clk 0:00:04.7]} 53. Rb8 {[%clk 0:00:13.6]}
1-0

[Event "*** Titled Tuesday Blitz"]
[Site "Chess.com"]
[Date "2018.06.05"]
[Round "9"]
[White "asms9699"]
[Black "Next_Touch"]
[Result "1/2-1/2"]
[WhiteElo "2483"]
[BlackElo "2696"]
[TimeControl "180+2"]
[EndTime "15:11:24 PDT"]
[Termination "Game drawn by stalemate"]

1. c4 {[%clk 0:03:01.9]} 1... Nf6 {[%clk 0:02:55.6]} 2. g3 {[%clk 0:03:03.1]}
2... e6 {[%clk 0:02:53]} 3. Bg2 {[%clk 0:03:04.4]} 3... d5 {[%clk 0:02:54.9]} 4.
Nf3 {[%clk 0:03:05.8]} 4... dxc4 {[%clk 0:02:47.8]} 5. O-O {[%clk 0:03:06.6]}
5... a6 {[%clk 0:02:41.1]} 6. a4 {[%clk 0:03:04.4]} 6... Nbd7 {[%clk 0:02:21.8]}
7. Qc2 {[%clk 0:02:53.7]} 7... Be7 {[%clk 0:02:17.7]} 8. Qxc4 {[%clk 0:02:54.1]}
8... b5 {[%clk 0:02:17.3]} 9. Qb3 {[%clk 0:02:13.7]} 9... Nc5 {[%clk 0:02:09.3]}
10. Qc2 {[%clk 0:02:14.1]} 10... Bb7 {[%clk 0:02:03.7]} 11. axb5 {[%clk
0:02:09.6]} 11... axb5 {[%clk 0:02:05.6]} 12. Rxa8 {[%clk 0:02:08.5]} 12... Qxa8
{[%clk 0:01:40.8]} 13. Na3 {[%clk 0:02:08.3]} 13... b4 {[%clk 0:01:20.7]} 14.
Nc4 {[%clk 0:01:57.2]} 14... O-O {[%clk 0:01:21.9]} 15. d3 {[%clk 0:01:50.1]}
15... b3 {[%clk 0:00:52.1]} 16. Qd1 {[%clk 0:01:32.6]} 16... Bd5 {[%clk
0:00:51.4]} 17. Be3 {[%clk 0:01:04.4]} 17... Rd8 {[%clk 0:00:42.2]} 18. Bxc5
{[%clk 0:01:02.9]} 18... Bxc5 {[%clk 0:00:36.6]} 19. Qxb3 {[%clk 0:01:03.8]}
19... Rb8 {[%clk 0:00:29.7]} 20. Qc2 {[%clk 0:01:04.2]} 20... Bf8 {[%clk
0:00:21.2]} 21. Nh4 {[%clk 0:00:57.8]} 21... Qb7 {[%clk 0:00:21]} 22. e4 {[%clk
0:00:33.4]} 22... Bxc4 {[%clk 0:00:10]} 23. Qxc4 {[%clk 0:00:35.3]} 23... Qxb2
{[%clk 0:00:11.4]} 24. Qxc7 {[%clk 0:00:36.4]} 24... Rb7 {[%clk 0:00:13.3]} 25.
Qc6 {[%clk 0:00:30.8]} 25... Rb6 {[%clk 0:00:13.2]} 26. Qc1 {[%clk 0:00:26.3]}
26... Qd4 {[%clk 0:00:13.5]} 27. Rd1 {[%clk 0:00:25.3]} 27... Bc5 {[%clk
0:00:11.9]} 28. Rd2 {[%clk 0:00:21.2]} 28... Ng4 {[%clk 0:00:09.6]} 29. Nf3
{[%clk 0:00:19.1]} 29... Qd6 {[%clk 0:00:05.3]} 30. h3 {[%clk 0:00:14.8]} 30...
Nxf2 {[%clk 0:00:05]} 31. d4 {[%clk 0:00:12.2]} 31... Nxh3+ {[%clk 0:00:03.5]}
32. Bxh3 {[%clk 0:00:12.3]} 32... Qxg3+ {[%clk 0:00:04.6]} 33. Bg2 {[%clk
0:00:13.9]} 33... Bf8 {[%clk 0:00:04.5]} 34. Qe1 {[%clk 0:00:14.3]} 34... Qf4
{[%clk 0:00:05.2]} 35. Kf2 {[%clk 0:00:14.4]} 35... Rb3 {[%clk 0:00:05.8]} 36.
Qe2 {[%clk 0:00:15.3]} 36... g5 {[%clk 0:00:06.2]} 37. Rd3 {[%clk 0:00:16.5]}
37... Rb1 {[%clk 0:00:06.6]} 38. Qe3 {[%clk 0:00:16.7]} 38... Qxe3+ {[%clk
0:00:06]} 39. Kxe3 {[%clk 0:00:17.7]} 39... h6 {[%clk 0:00:06.8]} 40. d5 {[%clk
0:00:17.4]} 40... exd5 {[%clk 0:00:07.6]} 41. exd5 {[%clk 0:00:19.3]} 41... Bd6
{[%clk 0:00:09.2]} 42. Nd4 {[%clk 0:00:19.3]} 42... Bf4+ {[%clk 0:00:10.1]} 43.
Kf3 {[%clk 0:00:17.6]} 43... Be5 {[%clk 0:00:09.5]} 44. Nf5 {[%clk 0:00:17.7]}
44... Rb4 {[%clk 0:00:06.5]} 45. Ke2 {[%clk 0:00:12.5]} 45... Rf4 {[%clk
0:00:07.3]} 46. Bh3 {[%clk 0:00:11.9]} 46... g4 {[%clk 0:00:08]} 47. Bxg4 {[%clk
0:00:12.1]} 47... h5 {[%clk 0:00:08.1]} 48. Ne7+ {[%clk 0:00:11]} 48... Kg7
{[%clk 0:00:08]} 49. Nc6 {[%clk 0:00:11.8]} 49... Rxg4 {[%clk 0:00:06.5]} 50. d6
{[%clk 0:00:05.2]} 50... Bxd6 {[%clk 0:00:05.1]} 51. Rxd6 {[%clk 0:00:07.1]}
51... Rg6 {[%clk 0:00:06.8]} 52. Rxg6+ {[%clk 0:00:05.2]} 52... fxg6 {[%clk
0:00:08.7]} 53. Kf3 {[%clk 0:00:06.5]} 53... Kf6 {[%clk 0:00:10.4]} 54. Nd4
{[%clk 0:00:07.9]} 54... Ke5 {[%clk 0:00:11.1]} 55. Ne2 {[%clk 0:00:09.3]} 55...
Kf5 {[%clk 0:00:11.4]} 56. Ng3+ {[%clk 0:00:10.7]} 56... Kg5 {[%clk 0:00:13.1]}
57. Ne4+ {[%clk 0:00:12]} 57... Kh4 {[%clk 0:00:14.1]} 58. Kf4 {[%clk
0:00:13.3]} 58... g5+ {[%clk 0:00:13.2]} 59. Nxg5 {[%clk 0:00:14.3]} 1/2-1/2